Cogmind - Beta 14 @@@ ROGUE MODE // 2024.10.02 @ 19:17:19 Player: MarKhan Result: Destroyed by G-34 Mercenary with Small Laser Performance ------------- Evolutions (0) 0 Regions Visited (1) 200 Robots Destroyed (15) 75 Value Destroyed (292) 292 Prototype IDs (0) 0 Alien Tech Used (0) 0 Bonus (0) 0 TOTAL SCORE: 567 Bonus ------- None Cogmind --------- Core Integrity 0/250 Matter 65/300 Energy 125/125 System Corruption 10% Temperature Cool (6) Movement Rolling (110) Ox2 Location -10/Materials Parts ------- > --- POWER (1) -------- Light Ion Engine > --- PROPULSION (2) --- Wheel > --- UTILITY (2) ------ Large Storage Unit Power Shielding > --- WEAPON (2) ------- Assault Rifle > --- INVENTORY (15) --- Light Ion Engine Light Treads Light Treads Aluminum Leg Aluminum Leg Wheel Weight Redist. System Sensor Array Terrain Scan Processor EM Pulse Gun Medium Laser Assault Rifle Mining Laser Peak State ------------ > --- POWER ------------ Light Ion Engine > --- PROPULSION ------- Wheel Wheel > --- UTILITY ---------- Large Storage Unit Seismic Detector > --- WEAPON ----------- Assault Rifle Assault Rifle > --- INVENTORY -------- Light Ion Engine Light Treads Light Treads Aluminum Leg Aluminum Leg Wheel Compact Wheel EM Pulse Gun Medium Laser Grenade Launcher [Rating: 8] Favorites ----------- Power Light Ion Engine Engine Light Ion Engine Propulsion Wheel Treads Light Treads Wheel Wheel Utility Large Storage Unit Device Seismic Detector Storage Large Storage Unit Protection Power Shielding Weapon Assault Rifle Ballistic Gun Assault Rifle Launcher Grenade Launcher Build | -11 -10 ------- Run | Yrd Mat Slots Evolved . | . . Power . | . . Propulsion . | . . Utility . | . . Weapon . | . . Parts Attached 19 | 7 12 Power 1 | 1 . Engine 1 | 1 . Core . | . . Reactor . | . . Propulsion 7 | 2 5 Treads 2 | . 2 Leg . | . . Wheel 5 | 2 3 Hover . | . . Flight . | . . Utility 6 | 2 4 Device 2 | 1 1 Storage 2 | 1 1 Processor . | . . Hackware . | . . Protection 2 | . 2 Artifact . | . . Weapon 5 | 2 3 Energy Gun . | . . Energy Cannon . | . . Ballistic Gun 3 | 2 1 Ballistic Cannon . | . . Launcher 2 | . 2 Special Weapon . | . . Impact Weapon . | . . Slashing Weapon . | . . Piercing Weapon . | . . Special Melee Weapon . | . . Unidentified Prototypes . | . . Parts Lost 3 | . 3 Power . | . . Propulsion 1 | . 1 Utility 1 | . 1 Weapon 1 | . 1 Highest Loss Streak 3 | . 3 To Critical Strikes . | . . Average Slot Usage (%) 99 | . 99 Engine 14 | . 14 Treads 2 | . 2 Wheel 24 | . 24 Device 10 | . 10 Storage 14 | . 14 Protection 3 | . 3 Ballistic Gun 23 | . 23 Launcher 3 | . 3 Peak Build Rating 8 | 7 8 Average Rating 7 | 5 7 On Entrance 3 | . 7 Naked Turns . | . . Heaviest Build 29 | 13 29 Greatest Support 40 | 20 40 Greatest Overweight (x) 2 | . 2 Average Overweight (x) . | . . Largest Inventory Capacity 15 | 8 15 Average Capacity 13 | 7 14 Most Carried 15 | 8 15 Average Carried 11 | 5 12 Final Capacity 15 | 8 15 Final Carried 13 | 8 13 Class Distribution -------------------- 100% | Mutant Dominant Class ---------------- Mutant | -10/Materials Resources | -11 -10 ----------- Run | Yrd Mat Matter Collected 482 | 335 147 Remotely . | . . Salvage Created 325 | 95 230 Parts 23 | 4 19 Haulers Intercepted 1 | . 1 Recyclers Shooed . | . . Parts Field Recycled . | . . Retrieved Matter . | . . Parts Self-Destructed . | . . Prevented . | . . Kills | -11 -10 ------- Run | Yrd Mat Combat Hostiles Destroyed 6 | . 6 Guns 2 | . 2 AOE 4 | . 4 Classes Destroyed 8 | 2 6 Worker 1 | . 1 Builder 2 | . 2 Tunneler 2 | 2 . Hauler 1 | . 1 Recycler 1 | 1 . Operator 1 | . 1 Watcher 1 | . 1 Grunt 6 | . 6 Best Kill Streak 6 | 2 6 Combat Bots Only 4 | . 4 Max Kills in Single Turn 2 | 1 2 Gunslinging . | . . Exploded 1 | . 1 Melee . | . . Uniques/NPCs Destroyed . | . . Combat | -11 -10 -------- Run | Yrd Mat Hostile Shots Fired 27 | . 27 Missed 6 | . 6 Damage Taken 610 | . 610 Core 252 | . 252 Absorbed by Shields . | . . Core Remaining (%) 100 | 100 . Volleys Fired 46 | 14 32 Largest 2 | 2 2 Hottest 50 | 40 50 Shots Fired 86 | 28 58 Gun 74 | 28 46 Cannon . | . . Launcher 12 | . 12 Special . | . . Kinetic 74 | 28 46 Thermal . | . . Explosive 12 | . 12 Electromagnetic . | . . Robot Hit Streak 5 | 3 5 Robot Miss Streak 6 | 4 6 Penetration Max . | . . Secondary Targets . | . . Shots Hit Robots 40 | 12 28 Core Hits 24 | 4 20 Critical Kills . | . . Critical Parts Destroyed 2 | . 2 Critical Strikes 2 | . 2 Destroy 2 | . 2 Melee Attacks . | . . Impact . | . . Slashing . | . . Piercing . | . . Sneak Attacks . | . . Combat Hostiles . | . . Follow-up Attacks . | . . Damage Inflicted 974 | 163 811 Guns 429 | 163 266 Cannons . | . . Explosions 545 | . 545 Melee . | . . Ramming . | . . Kinetic 429 | 163 266 Thermal 105 | . 105 Explosive 440 | . 440 Electromagnetic . | . . Impact . | . . Slashing . | . . Piercing . | . . Highest Corruption 10 | . 10 Average Corruption 10 | . 10 Corruption Purged . | . . Corruption Blocked . | . . Effects 1 | . 1 Data Loss (minor) 1 | . 1 Overload Shots . | . . Overflow Damage 34 | . 34 Projectiles . | . . Explosions 34 | . 34 Melee . | . . Knockbacks . | . . Impact . | . . Kinetic . | . . Secondary . | . . Self-Inflicted Damage 58 | . 58 Shots 2 | . 2 Rammed . | . . Targets Rammed . | . . Kicked . | . . Crushed . | . . Highest Temperature 10 | . 10 Average Temperature 4 | . 4 Received Heat Transfer 147 | . 147 Siege Activations . | . . Robots Corrupted . | . . Combat Hostiles . | . . Parts Fried . | . . Impact Corruptions . | . . Robots Melted . | . . Combat Hostiles . | . . Parts Melted . | . . Heat Transferred 100 | . 100 Parts Sabotaged . | . . Parts Stolen . | . . Parts Stripped . | . . Power Chain Reactions . | . . Alert | -11 -10 ------- Run | Yrd Mat Peak Influence 300 | 15 300 Initial 9 | . 9 Average 67 | 5 79 Maximum Alert Level 1 | . 1 Low Security (%) 92 | 100 91 Level 1 7 | . 8 Level 2 . | . . Level 3 . | . . Level 4 . | . . Level 5 . | . . High Security . | . . Max Security . | . . Squads Dispatched 2 | . 2 Investigation 1 | . 1 Extermination . | . . Reinforcement 1 | . 1 Assault . | . . Garrison . | . . Intercept . | . . Searches Triggered . | . . Construction Impeded . | . . Haulers Reinforced . | . . Active Scanning Responses . | . . Cargo Convoy Interrupts . | . . Stealth | -11 -10 --------- Run | Yrd Mat Distress Signals . | . . Communications Jammed . | . . Distress Signals . | . . Times Spotted 14 | . 14 Peak Tracking Total 4 | . 4 Tactical Retreats 1 | . 1 Traps | -11 -10 ------- Run | Yrd Mat Traps Triggered 1 | . 1 Indirectly . | . . Trap Hack Attempts . | . . Triggered . | . . Disarmed . | . . Reprogrammed . | . . Reused . | . . Traps Extracted . | . . Installed . | . . Triggered . | . . Machines | -11 -10 ---------- Run | Yrd Mat Machines Disabled 1 | . 1 Max in Single Turn 1 | . 1 Machines Repaired . | . . Machines Dismantled . | . . Machines Sabotaged . | . . Overloaded Fab Kills . | . . Hacking | -11 -10 --------- Run | Yrd Mat Machines Accessed 3 | . 3 Terminals 2 | . 2 Fabricators . | . . Repair Stations . | . . Recycling Units 1 | . 1 Scanalyzers . | . . Garrison Access . | . . Total Hacks 7 | . 7 Successful 6 | . 6 Failed 1 | . 1 Catastrophic . | . . Database Lockouts . | . . Manual 3 | . 3 Terminals 5 | . 5 Fabricators . | . . Repair Stations . | . . Recycling Units 2 | . 2 Scanalyzers . | . . Garrison Access . | . . Terminal Hacks 3 | . 3 Locate Traps 1 | . 1 Zone Layout 2 | . 2 Fabricator Hacks . | . . Repair Station Hacks . | . . Recycling Unit Hacks . | . . Scanalyzer . | . . Garrison Access Hacks . | . . Unauthorized Hacks 3 | . 3 Terminals 1 | . 1 Botnet 1 | . 1 Fabricators . | . . Repair Stations . | . . Recycling Units 2 | . 2 Reject 1 | . 1 Recyclers 1 | . 1 Scanalyzers . | . . Garrison Access . | . . Data Cores Recovered . | . . Used . | . . Hacking Detections 3 | . 3 Full Trace Events . | . . Feedback Events . | . . Feedback Blocked . | . . Robot Schematics Acquired . | . . Robots Built . | . . Authchips . | . . Time . | . . Total Robot Build Rating . | . . Part Schematics Acquired . | . . Parts Built . | . . Authchips . | . . Time . | . . Total Part Build Rating . | . . Parts Repaired . | . . Time . | . . Parts Recycled . | . . Recycled Matter . | . . Retrieved Matter . | . . Retrieved Components . | . . Parts Scanalyzed . | . . Part Schematics Acquired . | . . Parts Damaged . | . . Bothacking | -11 -10 ------------ Run | Yrd Mat Used RIF Installer . | . . Robots Hacked . | . . Non-combat . | . . Combat . | . . Robot Hacks Applied . | . . Relay Couplers Released . | . . Fabnet Peak Effective % . | . . Robots Rewired . | . . Allies Hacked . | . . Hacks Repelled . | . . Allies | -11 -10 -------- Run | Yrd Mat Total Allies . | . . Largest Group . | . . Highest-Rated Group . | . . Highest-Rated Ally . | . . Total Orders . | . . Ally Attacks . | . . Total Damage . | . . Kills . | . . Allies Corrupted . | . . Allies Melted . | . . Intel | -11 -10 ------- Run | Yrd Mat Robot Analysis Total . | . . Derelict Logs Recovered . | . . Drone Launches . | . . Drone Recoveries . | . . Exploration | -11 -10 ------------- Run | Yrd Mat Turns Passed 671 | 105 566 Spaces Moved 495 | 56 439 Core 1 | 1 . Treads 4 | . 4 Legs . | . . Wheels 490 | 55 435 Hover . | . . Flight . | . . Fastest Speed 50 | 50 80 Average Speed 93 | 79 95 Slowest Speed 160 | 80 160 Overloaded Moves . | . . Propulsion Burnouts . | . . Robots Hopped . | . . Cave-ins Triggered 1 | . 1 Exploration Rate (%) 31 | 4 59 Regions Visited 1 Branch Regions . Pre-discovered Areas . | . . Known Exits Taken . | . . Unknown Exits Taken 1 | 1 . Scrap Searched . | . . Spaces Dug . | . . Terrain Destroyed 109 | . 109 Melee . | . . Projectile . | . . AOE 109 | . 109 Terrain Rammed . | . . Walls Destroyed . | . . Machines Disabled . | . . Actions | -11 -10 --------- Run | Yrd Mat Total 608 | 84 524 Wait 32 | . 32 Move 494 | 55 439 Hop . | . . Pick Up 15 | 8 7 Fast Attach 7 | 7 . Attach 2 | . 2 Detach . | . . Swap 10 | . 10 Drop 2 | . 2 Fire 46 | 14 32 Melee . | . . Ram . | . . Kick . | . . Crush . | . . Escape Stasis . | . . Rewire . | . . Trap . | . . Miscellaneous . | . . Route ------- -11/Scrapyard -10/Materials (discovered 4 exits: [*Mat x2] / [*Min] / [*Sub]) History --------- Turn | Location | Event 8 | -11/Scrapyard | Discovered new exit (range 15) 106 | -11/Scrapyard | Entered Materials 203 | -10/Materials | Discovered new exit (range 19) 291 | -10/Materials | Discovered new exit (range 9) 312 | -10/Materials | Build established: Mutant 388 | -10/Materials | Discovered new exit (range 10) 622 | -10/Materials | Discovered new exit (range 7) 661 | -10/Materials | Crushed by falling debris 661 | -10/Materials | Core integrity fell below 50% 661 | -10/Materials | Core integrity fell below 20% 661 | -10/Materials | System corruption reached 10% 672 | -10/Materials | Destroyed by G-34 Mercenary with Small Laser Last Messages --------------- 00650_ G-34 Mercenary destroyed. 00651_ U-05 Engineer builds a Wall. 00654_ U-05 Engineer lays Concrete. 00655_ U-05 Engineer builds a Wall. 00657_ Terminal disabled. 00657_ U-05 Engineer lays Concrete. 00658_ U-05 Engineer builds a Wall. 00661_ The unstable cave ceiling collapses. 00661_ Crushed by falling debris. 00661_ Com. Wheel destroyed. 00661_ System corrupted by crushing effect (+5). 00661_ Grenade Launcher destroyed. 00661_ System corrupted by crushing effect (+5). 00661_ U-05 Engineer lays Concrete. 00662_ The unstable cave ceiling collapses. 00662_ U-05 Engineer builds a Wall. 00664_ U-05 Engineer lays Concrete. 00666_ U-05 Engineer builds a Wall. 00667_ System corrupted: Component data lost. 00671_ U-05 Engineer builds a Wall. Map ----- +----------------------------------------------------+ | | | | | | | | | | | | | | | | | | | | | | | ?????????????????????### # #### | | ????????????????????## = # | | ????????????????????# = T # | | ????????????????????## | | ????????########????## = | | ????????# ######" ### # | | ????????# + ! ## | | ???###### """ #####"== # | | ???# + """ #???## # | | ???# #### """ #???## # | | ???# #??# #???##=! # | | ???# #??####+######## = # | | ####+###???# " ## | | #???# ## #####+######; #? | | #???# # ?# @ ;###? | | """ #???# # #?# """ ##??? | | """" #???# # ### """ #???? | | """" #??## #??# ## """ #???? | | """" #??# #### # #???? | | """ #??## ## < # u #???? | | #??# # #### ###???? | | ########??# == #????? | | ??????????# # # # #????? | | ??????????##### ##????? | | ??????????????######## #???? | | ?????????????????????# g #???? | | ?????????????????????# g #???? | | ????????????????????? #???? | | ????????????????????? [ #???? | | ????????????????????# %= #???? | | ????????????????????# #???? | | ????????????????????### #???? | | ???????????????????? #???? | | ???????????????????? ##???? | | ????????????????????? #????? | | ????????????????????? #????? | | ??????????????????????? ?????? | | ???????????????????????????????? | | ???????????????????????????????? | +----------------------------------------------------+ Best States ------------- Heat Dissipation 25 Energy Generation 10 Energy Capacity 125 Matter Stores 300 Matter Capacity 300 Sight Range 16 Terrain Scan Density 10 Power Shielding 33 Evasion (%) 44 Recoil Reduction 2 Item Schematics ----------------- None Robot Schematics ------------------ None Fabricated ------------ Nothing Alien Tech Used ----------------- None Achievements -------------- None Challenges ------------ None Game ------ Seed TimingOmegaKit Manual? 0 Play Time 00:12:00 Cumulative 52.3 hours Start 2024.10.02 @ 19:07:40 End 2024.10.02 @ 19:17:19 Sessions 1 Manual Loads 0 Difficulty Rogue Special Mode None Game No. 51 Rogue 51 Adventurer 0 Explorer 0 Win Type - Total 2 Types 2/0/0/0/0/0/0/0/0 Lore% 24 Gallery% 36 Achievement% 37 Wizard Run 0 Options --------- Layout 1 ASCII 0 Keyboard 1 Movement Arrows Keybinds 0 Fullscreen 1 Font 24/Smallcaps Map View 50x35 Zoom Use 0% Tactical HUD 1 Map Filters NONE Filters NONE Steam 1 RUN: cb85d45f-7562-4619-b8b9-4fde64c0ff82